[Event "Titled Tuesday Blitz July 05 Late 2022"]
[White "Bon, Michael"]
[Black "Przybylski, Wojciech"]
[WhiteFideId "620696"]
[BlackFideId "1117599"]
[WhiteElo "2234"]
[BlackElo "2133"]
[Result "0-1"]
[Round "03"]
[TimeControl "180+1"]
[Date "2022.07.06"]
[WhiteClock "0:00:05"]
[BlackClock "0:00:08"]

1. e4 {[%clk 0:02:59]}  e5 {[%clk 0:02:58]} 2. Nf3 {[%clk 0:02:59]}  Nc6 {[%clk 0:02:58]} 3. Bc4 {[%clk 0:02:58]}  Nf6 {[%clk 0:02:58]} 4. d3 {[%clk 0:02:57]}  Be7 {[%clk 0:02:57]} 5. c3 {[%clk 0:02:56]}  O-O {[%clk 0:02:56]} 6. O-O {[%clk 0:02:46]}  d6 {[%clk 0:02:55]} 7. a4 {[%clk 0:02:42]}  Be6 {[%clk 0:02:52]} 8. Bxe6 {[%clk 0:02:35]}  fxe6 {[%clk 0:02:51]} 9. b4 {[%clk 0:02:34]}  Qd7 {[%clk 0:02:49]} 10. Nbd2 {[%clk 0:02:25]}  Rae8 {[%clk 0:02:48]} 11. Re1 {[%clk 0:02:21]}  Kh8 {[%clk 0:02:46]} 12. Nc4 {[%clk 0:02:14]}  a6 {[%clk 0:02:40]} 13. b5 {[%clk 0:01:58]}  Nd8 {[%clk 0:02:34]} 14. Qb3 {[%clk 0:01:57]}  Nf7 {[%clk 0:02:30]} 15. Rb1 {[%clk 0:01:48]}  Ra8 {[%clk 0:02:16]} 16. Bd2 {[%clk 0:01:28]}  Nh5 {[%clk 0:02:07]} 17. b6 {[%clk 0:01:19]}  c6 {[%clk 0:02:06]} 18. d4 {[%clk 0:01:12]}  Rad8 {[%clk 0:01:47]} 19. Rbd1 {[%clk 0:01:07]}  exd4 {[%clk 0:01:41]} 20. cxd4 {[%clk 0:01:05]}  Nf6 {[%clk 0:01:35]} 21. e5 {[%clk 0:00:40]}  Nd5 {[%clk 0:01:35]} 22. exd6 {[%clk 0:00:37]}  Bxd6 {[%clk 0:01:33]} 23. Nxd6 {[%clk 0:00:28]}  Qxd6 {[%clk 0:01:33]} 24. Re4 {[%clk 0:00:22]}  Rde8 {[%clk 0:01:28]} 25. Rde1 {[%clk 0:00:21]}  Nd8 {[%clk 0:01:21]} 26. Rh4 {[%clk 0:00:19]}  Rf5 {[%clk 0:01:09]} 27. Qd3 {[%clk 0:00:17]}  Kg8 {[%clk 0:01:01]} 28. Ng5 {[%clk 0:00:17]}  Nf6 {[%clk 0:00:37]} 29. Qh3 {[%clk 0:00:13]}  h6 {[%clk 0:00:30]} 30. Nf3 {[%clk 0:00:13]}  Nf7 {[%clk 0:00:28]} 31. Bc3 {[%clk 0:00:09]}  Nd5 {[%clk 0:00:24]} 32. Bd2 {[%clk 0:00:09]}  Rf8 {[%clk 0:00:21]} 33. Qg3 {[%clk 0:00:07]}  Qxg3 {[%clk 0:00:20]} 34. hxg3 {[%clk 0:00:07]}  Rf6 {[%clk 0:00:18]} 35. Ne5 {[%clk 0:00:07]}  Rd8 {[%clk 0:00:16]} 36. Nc4 {[%clk 0:00:06]}  Kf8 {[%clk 0:00:12]} 37. Na5 {[%clk 0:00:06]}  Rd7 {[%clk 0:00:12]} 38. Rhe4 {[%clk 0:00:05]}  Ke7 {[%clk 0:00:11]} 39. f4 {[%clk 0:00:05]}  Nd6 {[%clk 0:00:11]} 40. R4e2 {[%clk 0:00:05]}  Nf5 {[%clk 0:00:11]} 41. Kf2 {[%clk 0:00:05]}  Nxd4 {[%clk 0:00:11]} 42. Re4 {[%clk 0:00:06]}  Nf5 {[%clk 0:00:10]} 43. g4 {[%clk 0:00:05]}  Nd6 {[%clk 0:00:10]} 44. g3 {[%clk 0:00:05]}  Nxe4+ {[%clk 0:00:09]} 45. Rxe4 {[%clk 0:00:06]}  Nxb6 {[%clk 0:00:09]} 46. Be3 {[%clk 0:00:05]}  Nd5 {[%clk 0:00:10]} 47. Bc5+ {[%clk 0:00:04]}  Kf7 {[%clk 0:00:10]} 48. Nc4 {[%clk 0:00:04]}  g5 {[%clk 0:00:08]} 49. Ne5+ {[%clk 0:00:05]}  Ke8 {[%clk 0:00:07]} 50. Nxd7 {[%clk 0:00:06]}  Kxd7 {[%clk 0:00:08]} 51. f5 {[%clk 0:00:05]}  exf5 {[%clk 0:00:07]} 52. gxf5 {[%clk 0:00:06]}  Rxf5+ {[%clk 0:00:07]} 53. Kg2 {[%clk 0:00:06]}  b6 {[%clk 0:00:08]} 54. Bg1 {[%clk 0:00:03]}  c5 {[%clk 0:00:08]} 55. Re2 {[%clk 0:00:02]}  Kc6 {[%clk 0:00:08]} 56. Re6+ {[%clk 0:00:02]}  Kd7 {[%clk 0:00:07]} 57. Rxh6 {[%clk 0:00:03]}  Rf6 {[%clk 0:00:06]} 58. Rh7+ {[%clk 0:00:03]}  Kc6 {[%clk 0:00:06]} 59. Ra7 {[%clk 0:00:03]}  Nb4 {[%clk 0:00:05]} 60. a5 {[%clk 0:00:02]}  Kb5 {[%clk 0:00:04]} 61. axb6 {[%clk 0:00:01]}  Rxb6 {[%clk 0:00:05]} 62. g4 {[%clk 0:00:02]}  Rc6 {[%clk 0:00:04]} 63. Be3 {[%clk 0:00:02]}  c4 {[%clk 0:00:04]} 64. Bxg5 {[%clk 0:00:03]}  c3 {[%clk 0:00:05]} 65. Be3 {[%clk 0:00:03]}  c2 {[%clk 0:00:05]} 66. Kf3 {[%clk 0:00:03]}  Nd5 {[%clk 0:00:05]} 67. Bf4 {[%clk 0:00:03]}  Nxf4 {[%clk 0:00:05]} 68. Rb7+ {[%clk 0:00:04]}  Ka4 {[%clk 0:00:05]} 69. Kxf4 {[%clk 0:00:03]}  c1=Q+ {[%clk 0:00:04]} 70. Kf5 {[%clk 0:00:04]}  Qc2+ {[%clk 0:00:05]} 71. Ke5 {[%clk 0:00:04]}  Qc3+ {[%clk 0:00:05]} 72. Kf5 {[%clk 0:00:04]}  Qc2+ {[%clk 0:00:05]} 73. Ke5 {[%clk 0:00:04]}  Qe2+ {[%clk 0:00:05]} 74. Kf5 {[%clk 0:00:05]}  Rc5+ {[%clk 0:00:05]} 75. Kf6 {[%clk 0:00:05]}  Qf3+ {[%clk 0:00:05]} 76. Ke7 {[%clk 0:00:05]}  Qxb7+ {[%clk 0:00:05]} 77. Kd6 {[%clk 0:00:06]}  Qb6+ {[%clk 0:00:06]} 78. Kd7 {[%clk 0:00:05]}  Rc7+ {[%clk 0:00:07]} 79. Kd8 {[%clk 0:00:05]}  Qb8# {[%clk 0:00:08]} 0-1


[Site "https://www.chess.com"]

[Event "Titled Tuesday Blitz July 05 Late 2022"]
[White "Bortnyk, Olexandr"]
[Black "Ladopoulos, Dimitrios"]
[WhiteFideId "14120828"]
[BlackFideId "4239580"]
[WhiteElo "2723"]
[BlackElo "2195"]
[Result "1-0"]
[Round "03"]
[TimeControl "180+1"]
[Date "2022.07.05"]
[WhiteClock "0:01:19"]
[BlackClock "0:00:59"]

1. d4 {[%clk 0:02:47]}  e6 {[%clk 0:02:56]} 2. Nc3 {[%clk 0:02:47]}  d5 {[%clk 0:02:55]} 3. Bf4 {[%clk 0:02:47]}  Nf6 {[%clk 0:02:48]} 4. Nb5 {[%clk 0:02:46]}  Na6 {[%clk 0:02:48]} 5. e3 {[%clk 0:02:45]}  c6 {[%clk 0:02:45]} 6. Nc3 {[%clk 0:02:45]}  Nc7 {[%clk 0:02:45]} 7. Nf3 {[%clk 0:02:45]}  b6 {[%clk 0:02:43]} 8. Ne5 {[%clk 0:02:45]}  Bb7 {[%clk 0:02:43]} 9. Bd3 {[%clk 0:02:45]}  Bd6 {[%clk 0:02:43]} 10. Qf3 {[%clk 0:02:45]}  Qe7 {[%clk 0:02:41]} 11. O-O-O {[%clk 0:02:41]}  Nd7 {[%clk 0:02:27]} 12. Nxf7 {[%clk 0:02:41]}  Bxf4 {[%clk 0:02:20]} 13. Nxh8 {[%clk 0:02:39]}  Bh6 {[%clk 0:02:16]} 14. Bxh7 {[%clk 0:02:36]}  O-O-O {[%clk 0:02:16]} 15. Ng6 {[%clk 0:02:34]}  Qb4 {[%clk 0:02:12]} 16. a3 {[%clk 0:02:32]}  Qa5 {[%clk 0:02:12]} 17. Ne7+ {[%clk 0:02:31]}  Kb8 {[%clk 0:02:12]} 18. Bd3 {[%clk 0:02:30]}  c5 {[%clk 0:02:11]} 19. Qg3 {[%clk 0:02:22]}  cxd4 {[%clk 0:02:01]} 20. Nb5 {[%clk 0:02:12]}  e5 {[%clk 0:02:02]} 21. Nxc7 {[%clk 0:02:05]}  Kxc7 {[%clk 0:02:02]} 22. Kb1 {[%clk 0:02:01]}  dxe3 {[%clk 0:01:15]} 23. fxe3 {[%clk 0:02:01]}  Kb8 {[%clk 0:01:12]} 24. Nf5 {[%clk 0:01:43]}  Ka8 {[%clk 0:01:10]} 25. Rhf1 {[%clk 0:01:33]}  e4 {[%clk 0:01:03]} 26. Bxe4 {[%clk 0:01:32]}  dxe4 {[%clk 0:01:01]} 27. Nxh6 {[%clk 0:01:31]}  gxh6 {[%clk 0:00:59]} 28. Qc7 {[%clk 0:01:19]} 1-0


[Site "https://www.chess.com"]

[Event "Titled Tuesday Blitz July 05 Late 2022"]
[White "D`Arruda, Ricardo D."]
[Black "Freitag, Manfred"]
[WhiteFideId "100692"]
[BlackFideId "1602004"]
[WhiteElo "2442"]
[BlackElo "2292"]
[Result "1/2-1/2"]
[Round "03"]
[TimeControl "180+1"]
[Date "2022.07.06"]
[WhiteClock "0:00:10"]
[BlackClock "0:00:09"]

1. d4 {[%clk 0:02:56]}  Nf6 {[%clk 0:02:59]} 2. Nf3 {[%clk 0:02:55]}  g6 {[%clk 0:02:59]} 3. Nc3 {[%clk 0:02:53]}  Bg7 {[%clk 0:03:00]} 4. e4 {[%clk 0:02:54]}  d5 {[%clk 0:03:01]} 5. exd5 {[%clk 0:02:53]}  Nxd5 {[%clk 0:03:01]} 6. Bc4 {[%clk 0:02:53]}  Nb6 {[%clk 0:03:00]} 7. Bb3 {[%clk 0:02:52]}  O-O {[%clk 0:03:00]} 8. O-O {[%clk 0:02:51]}  Nc6 {[%clk 0:03:01]} 9. Be3 {[%clk 0:02:51]}  Bg4 {[%clk 0:02:59]} 10. h3 {[%clk 0:02:49]}  Bxf3 {[%clk 0:02:56]} 11. Qxf3 {[%clk 0:02:50]}  Nxd4 {[%clk 0:02:30]} 12. Bxd4 {[%clk 0:02:48]}  Qxd4 {[%clk 0:02:31]} 13. Qxb7 {[%clk 0:02:47]}  Qc5 {[%clk 0:02:19]} 14. Ne4 {[%clk 0:02:23]}  Qe5 {[%clk 0:02:19]} 15. c3 {[%clk 0:02:18]}  a5 {[%clk 0:01:54]} 16. a4 {[%clk 0:02:17]}  Rab8 {[%clk 0:01:51]} 17. Qc6 {[%clk 0:02:17]}  e6 {[%clk 0:01:23]} 18. Rad1 {[%clk 0:02:04]}  Nd5 {[%clk 0:01:15]} 19. Bxd5 {[%clk 0:02:02]}  exd5 {[%clk 0:01:15]} 20. Qxd5 {[%clk 0:02:01]}  Rxb2 {[%clk 0:01:14]} 21. Qxe5 {[%clk 0:01:58]}  Bxe5 {[%clk 0:01:14]} 22. Rd5 {[%clk 0:01:58]}  Re8 {[%clk 0:01:14]} 23. Rxa5 {[%clk 0:01:56]}  f5 {[%clk 0:01:13]} 24. Ng5 {[%clk 0:01:46]}  Bxc3 {[%clk 0:01:12]} 25. Rc5 {[%clk 0:01:46]}  Be5 {[%clk 0:01:08]} 26. Nf3 {[%clk 0:01:32]}  Bd6 {[%clk 0:01:08]} 27. Rc4 {[%clk 0:01:32]}  Ra2 {[%clk 0:01:08]} 28. Re1 {[%clk 0:01:28]}  Ra8 {[%clk 0:01:04]} 29. g3 {[%clk 0:01:17]}  R8xa4 {[%clk 0:01:04]} 30. Rxa4 {[%clk 0:01:18]}  Rxa4 {[%clk 0:01:04]} 31. Re8+ {[%clk 0:01:08]}  Kf7 {[%clk 0:01:03]} 32. Rh8 {[%clk 0:01:07]}  Kg7 {[%clk 0:01:03]} 33. Rc8 {[%clk 0:01:07]}  Ra2 {[%clk 0:01:01]} 34. Ng5 {[%clk 0:01:05]}  Kf6 {[%clk 0:00:53]} 35. Nxh7+ {[%clk 0:01:04]}  Ke7 {[%clk 0:00:54]} 36. Nf8 {[%clk 0:00:56]}  g5 {[%clk 0:00:49]} 37. Ng6+ {[%clk 0:00:55]}  Kd7 {[%clk 0:00:48]} 38. Rg8 {[%clk 0:00:47]}  Rd2 {[%clk 0:00:41]} 39. f4 {[%clk 0:00:33]}  gxf4 {[%clk 0:00:37]} 40. Nxf4 {[%clk 0:00:34]}  c5 {[%clk 0:00:33]} 41. Kf1 {[%clk 0:00:29]}  c4 {[%clk 0:00:32]} 42. Ke1 {[%clk 0:00:29]}  Rh2 {[%clk 0:00:32]} 43. h4 {[%clk 0:00:26]}  Bb4+ {[%clk 0:00:26]} 44. Kd1 {[%clk 0:00:25]}  c3 {[%clk 0:00:26]} 45. Nd3 {[%clk 0:00:22]}  c2+ {[%clk 0:00:25]} 46. Kc1 {[%clk 0:00:21]}  Ba3+ {[%clk 0:00:25]} 47. Nb2 {[%clk 0:00:21]}  Bc5 {[%clk 0:00:11]} 48. Nc4 {[%clk 0:00:16]}  Ke6 {[%clk 0:00:11]} 49. Rc8 {[%clk 0:00:16]}  Kd5 {[%clk 0:00:10]} 50. Nd2 {[%clk 0:00:14]}  Be3 {[%clk 0:00:09]} 51. Rd8+ {[%clk 0:00:14]}  Ke5 {[%clk 0:00:08]} 52. Kxc2 {[%clk 0:00:15]}  Rg2 {[%clk 0:00:08]} 53. Rd3 {[%clk 0:00:11]}  Bxd2 {[%clk 0:00:07]} 54. Rxd2 {[%clk 0:00:11]}  Rxg3 {[%clk 0:00:07]} 55. Rh2 {[%clk 0:00:11]}  Kf6 {[%clk 0:00:07]} 56. Kd2 {[%clk 0:00:11]}  Kg6 {[%clk 0:00:07]} 57. h5+ {[%clk 0:00:09]}  Kh6 {[%clk 0:00:07]} 58. Ke2 {[%clk 0:00:10]}  f4 {[%clk 0:00:07]} 59. Kf2 {[%clk 0:00:10]}  Rg4 {[%clk 0:00:08]} 60. Kf3 {[%clk 0:00:10]}  Rg5 {[%clk 0:00:08]} 61. Kxf4 {[%clk 0:00:10]}  Rxh5 {[%clk 0:00:09]} 62. Rxh5+ {[%clk 0:00:10]}  Kxh5 {[%clk 0:00:09]} 1/2-1/2


[Site "https://www.chess.com"]

[Event "Titled Tuesday Blitz July 05 Late 2022"]
[White "Diaz Rosas, Julio Cesar"]
[Black "Oro, Luis"]
[WhiteFideId "5105099"]
[BlackFideId "104094"]
[WhiteElo "2278"]
[BlackElo "2372"]
[Result "1-0"]
[Round "03"]
[TimeControl "180+1"]
[Date "2022.07.06"]
[WhiteClock "0:00:09"]
[BlackClock "0:00:02"]

1. d4 {[%clk 0:03:00]}  Nf6 {[%clk 0:02:56]} 2. c4 {[%clk 0:03:00]}  e6 {[%clk 0:02:56]} 3. Nc3 {[%clk 0:02:59]}  Bb4 {[%clk 0:02:56]} 4. a3 {[%clk 0:03:00]}  Bxc3+ {[%clk 0:02:56]} 5. bxc3 {[%clk 0:03:00]}  O-O {[%clk 0:02:57]} 6. f3 {[%clk 0:02:59]}  d5 {[%clk 0:02:57]} 7. e3 {[%clk 0:02:59]}  c5 {[%clk 0:02:57]} 8. Bd3 {[%clk 0:02:57]}  Nc6 {[%clk 0:02:56]} 9. Ne2 {[%clk 0:02:57]}  cxd4 {[%clk 0:02:54]} 10. cxd4 {[%clk 0:02:56]}  e5 {[%clk 0:02:48]} 11. cxd5 {[%clk 0:02:44]}  Qxd5 {[%clk 0:02:45]} 12. e4 {[%clk 0:02:36]}  Qd6 {[%clk 0:02:43]} 13. d5 {[%clk 0:02:34]}  Ne7 {[%clk 0:02:43]} 14. O-O {[%clk 0:02:29]}  Nd7 {[%clk 0:02:42]} 15. Be3 {[%clk 0:02:24]}  b6 {[%clk 0:02:39]} 16. Nc3 {[%clk 0:02:20]}  a6 {[%clk 0:02:31]} 17. Qe2 {[%clk 0:02:12]}  Bb7 {[%clk 0:02:30]} 18. Na2 {[%clk 0:01:48]}  Nc5 {[%clk 0:02:19]} 19. Bc2 {[%clk 0:01:29]}  a5 {[%clk 0:02:18]} 20. Rfc1 {[%clk 0:01:24]}  Ba6 {[%clk 0:02:16]} 21. Qf2 {[%clk 0:01:22]}  Rac8 {[%clk 0:02:13]} 22. Nc3 {[%clk 0:01:13]}  f5 {[%clk 0:01:55]} 23. exf5 {[%clk 0:01:00]}  Nxf5 {[%clk 0:01:49]} 24. Ne4 {[%clk 0:01:00]}  Nxe4 {[%clk 0:01:44]} 25. Bxe4 {[%clk 0:01:00]}  Nxe3 {[%clk 0:01:25]} 26. Qxe3 {[%clk 0:01:00]}  Bb7 {[%clk 0:01:20]} 27. Qd3 {[%clk 0:00:40]}  Rc5 {[%clk 0:01:17]} 28. Bxh7+ {[%clk 0:00:37]}  Kh8 {[%clk 0:01:16]} 29. Be4 {[%clk 0:00:37]}  Rfc8 {[%clk 0:01:13]} 30. Rd1 {[%clk 0:00:30]}  b5 {[%clk 0:00:43]} 31. Qe3 {[%clk 0:00:22]}  b4 {[%clk 0:00:34]} 32. axb4 {[%clk 0:00:22]}  axb4 {[%clk 0:00:34]} 33. Rab1 {[%clk 0:00:20]}  Rc3 {[%clk 0:00:32]} 34. Qg5 {[%clk 0:00:20]}  b3 {[%clk 0:00:18]} 35. Qh5+ {[%clk 0:00:19]}  Qh6 {[%clk 0:00:18]} 36. Qxh6+ {[%clk 0:00:11]}  gxh6 {[%clk 0:00:18]} 37. d6 {[%clk 0:00:12]}  Bxe4 {[%clk 0:00:17]} 38. fxe4 {[%clk 0:00:13]}  Rd8 {[%clk 0:00:18]} 39. h3 {[%clk 0:00:10]}  Kg7 {[%clk 0:00:18]} 40. Kh2 {[%clk 0:00:10]}  Kf6 {[%clk 0:00:18]} 41. Rd2 {[%clk 0:00:10]}  Ke6 {[%clk 0:00:18]} 42. Rbd1 {[%clk 0:00:09]}  Rc6 {[%clk 0:00:18]} 43. Rb1 {[%clk 0:00:09]}  Rb6 {[%clk 0:00:18]} 44. Rd3 {[%clk 0:00:07]}  Rbxd6 {[%clk 0:00:13]} 45. Rxd6+ {[%clk 0:00:07]}  Rxd6 {[%clk 0:00:13]} 46. Rxb3 {[%clk 0:00:08]}  Kf6 {[%clk 0:00:12]} 47. Rf3+ {[%clk 0:00:08]}  Kg6 {[%clk 0:00:11]} 48. Rf5 {[%clk 0:00:09]}  Re6 {[%clk 0:00:04]} 49. g4 {[%clk 0:00:08]}  Kg7 {[%clk 0:00:03]} 50. Kg3 {[%clk 0:00:09]}  Re8 {[%clk 0:00:03]} 51. Kh4 {[%clk 0:00:09]}  Kg6 {[%clk 0:00:03]} 52. Kg3 {[%clk 0:00:08]}  Re7 {[%clk 0:00:02]} 53. h4 {[%clk 0:00:09]}  Re8 {[%clk 0:00:01]} 54. h5+ {[%clk 0:00:09]}  Kg7 {[%clk 0:00:02]} 55. Kh4 {[%clk 0:00:09]}  Re6 {[%clk 0:00:03]} 56. g5 {[%clk 0:00:09]}  hxg5+ {[%clk 0:00:03]} 57. Kxg5 {[%clk 0:00:10]}  Re7 {[%clk 0:00:01]} 58. h6+ {[%clk 0:00:10]}  Kh7 {[%clk 0:00:02]} 59. Kh5 {[%clk 0:00:10]}  Re6 {[%clk 0:00:02]} 60. Rf7+ {[%clk 0:00:10]}  Kg8 {[%clk 0:00:02]} 61. Rg7+ {[%clk 0:00:10]}  Kh8 {[%clk 0:00:03]} 62. Rd7 {[%clk 0:00:10]}  Ra6 {[%clk 0:00:02]} 63. Kg5 {[%clk 0:00:10]}  Rb6 {[%clk 0:00:02]} 64. h7 {[%clk 0:00:09]} 1-0


[Site "https://www.chess.com"]

[Event "Titled Tuesday Blitz July 05 Late 2022"]
[White "Domingo Nunez, Ruben"]
[Black "Hansen, Eric"]
[WhiteFideId "22245570"]
[BlackFideId "2606771"]
[WhiteElo "2373"]
[BlackElo "2568"]
[Result "0-1"]
[Round "03"]
[TimeControl "180+1"]
[Date "2022.07.05"]
[WhiteClock "0:00:11"]
[BlackClock "0:00:35"]

1. c4 {[%clk 0:03:00]}  e5 {[%clk 0:02:59]} 2. Nc3 {[%clk 0:03:01]}  Nc6 {[%clk 0:02:59]} 3. g3 {[%clk 0:03:01]}  Nf6 {[%clk 0:03:00]} 4. Bg2 {[%clk 0:03:02]}  Bb4 {[%clk 0:03:00]} 5. Nf3 {[%clk 0:03:00]}  O-O {[%clk 0:03:00]} 6. O-O {[%clk 0:03:00]}  d6 {[%clk 0:02:58]} 7. Qc2 {[%clk 0:02:52]}  Bxc3 {[%clk 0:02:57]} 8. Qxc3 {[%clk 0:02:52]}  Bg4 {[%clk 0:02:49]} 9. Re1 {[%clk 0:02:32]}  Re8 {[%clk 0:02:46]} 10. b3 {[%clk 0:02:30]}  Ne4 {[%clk 0:02:42]} 11. Qc2 {[%clk 0:02:28]}  Nc5 {[%clk 0:02:42]} 12. Bb2 {[%clk 0:02:27]}  Qd7 {[%clk 0:02:43]} 13. Ng5 {[%clk 0:02:02]}  Bf5 {[%clk 0:02:43]} 14. Ne4 {[%clk 0:01:56]}  Nb4 {[%clk 0:02:33]} 15. Qb1 {[%clk 0:01:55]}  a5 {[%clk 0:02:30]} 16. Bc3 {[%clk 0:01:50]}  Bxe4 {[%clk 0:02:22]} 17. Bxe4 {[%clk 0:01:49]}  Nxe4 {[%clk 0:02:23]} 18. Qxe4 {[%clk 0:01:50]}  Nc6 {[%clk 0:02:15]} 19. Qd5 {[%clk 0:01:45]}  b6 {[%clk 0:02:12]} 20. Kg2 {[%clk 0:01:37]}  h5 {[%clk 0:02:12]} 21. e4 {[%clk 0:01:20]}  h4 {[%clk 0:02:08]} 22. Rad1 {[%clk 0:01:19]}  h3+ {[%clk 0:02:04]} 23. Kg1 {[%clk 0:01:19]}  Ne7 {[%clk 0:01:51]} 24. Qd3 {[%clk 0:01:20]}  Ng6 {[%clk 0:01:52]} 25. Qf3 {[%clk 0:01:19]}  b5 {[%clk 0:01:50]} 26. cxb5 {[%clk 0:01:16]}  Qxb5 {[%clk 0:01:46]} 27. Qf5 {[%clk 0:01:13]}  a4 {[%clk 0:01:46]} 28. b4 {[%clk 0:01:10]}  Qc4 {[%clk 0:01:42]} 29. a3 {[%clk 0:01:10]}  Qe6 {[%clk 0:01:41]} 30. Re3 {[%clk 0:01:06]}  d5 {[%clk 0:01:34]} 31. Qxe6 {[%clk 0:01:01]}  fxe6 {[%clk 0:01:35]} 32. d4 {[%clk 0:01:02]}  exd4 {[%clk 0:01:34]} 33. Bxd4 {[%clk 0:01:01]}  e5 {[%clk 0:01:33]} 34. Bc5 {[%clk 0:01:00]}  d4 {[%clk 0:01:33]} 35. Rf3 {[%clk 0:01:00]}  Nf8 {[%clk 0:01:30]} 36. Rf5 {[%clk 0:00:55]}  Nd7 {[%clk 0:01:29]} 37. Rc1 {[%clk 0:00:55]}  Ra6 {[%clk 0:01:28]} 38. b5 {[%clk 0:00:52]}  Ra5 {[%clk 0:01:20]} 39. Bb4 {[%clk 0:00:52]}  Rxb5 {[%clk 0:01:20]} 40. Rxc7 {[%clk 0:00:52]}  Nf6 {[%clk 0:01:21]} 41. Rg5 {[%clk 0:00:51]}  Rxb4 {[%clk 0:01:05]} 42. axb4 {[%clk 0:00:46]}  d3 {[%clk 0:01:05]} 43. Kf1 {[%clk 0:00:40]}  Rd8 {[%clk 0:00:58]} 44. Rgxg7+ {[%clk 0:00:16]}  Kh8 {[%clk 0:00:58]} 45. Ke1 {[%clk 0:00:17]}  a3 {[%clk 0:00:55]} 46. f3 {[%clk 0:00:14]}  a2 {[%clk 0:00:52]} 47. Ra7 {[%clk 0:00:13]}  a1=Q+ {[%clk 0:00:52]} 48. Rxa1 {[%clk 0:00:13]}  Kxg7 {[%clk 0:00:53]} 49. Kd2 {[%clk 0:00:13]}  Rd4 {[%clk 0:00:53]} 50. Ra5 {[%clk 0:00:13]}  Rxb4 {[%clk 0:00:51]} 51. Kc3 {[%clk 0:00:12]}  d2 {[%clk 0:00:48]} 52. Kxd2 {[%clk 0:00:12]}  Rb2+ {[%clk 0:00:48]} 53. Ke3 {[%clk 0:00:12]}  Rxh2 {[%clk 0:00:49]} 54. Rxe5 {[%clk 0:00:13]}  Re2+ {[%clk 0:00:38]} 55. Kxe2 {[%clk 0:00:11]}  h2 {[%clk 0:00:38]} 56. Re7+ {[%clk 0:00:11]}  Kf8 {[%clk 0:00:35]} 57. Re6 {[%clk 0:00:11]}  Kf7 {[%clk 0:00:35]} 0-1


[Site "https://www.chess.com"]

[Event "Titled Tuesday Blitz July 05 Late 2022"]
[White "Fernandez, Fernando"]
[Black "Tikhonov, Viacheslav"]
[WhiteFideId "3802299"]
[BlackFideId "44196407"]
[WhiteElo "2292"]
[BlackElo "1839"]
[Result "1-0"]
[Round "03"]
[TimeControl "180+1"]
[Date "2022.07.06"]
[WhiteClock "0:00:05"]
[BlackClock "0:00:09"]

1. e4 {[%clk 0:03:00]}  e6 {[%clk 0:02:58]} 2. d4 {[%clk 0:03:00]}  d5 {[%clk 0:02:59]} 3. Nc3 {[%clk 0:03:00]}  Bb4 {[%clk 0:02:59]} 4. e5 {[%clk 0:03:00]}  Ne7 {[%clk 0:02:59]} 5. a3 {[%clk 0:03:00]}  Bxc3+ {[%clk 0:03:00]} 6. bxc3 {[%clk 0:03:01]}  c5 {[%clk 0:03:00]} 7. a4 {[%clk 0:02:50]}  b6 {[%clk 0:02:53]} 8. Bb5+ {[%clk 0:02:49]}  Bd7 {[%clk 0:02:50]} 9. Bd3 {[%clk 0:02:49]}  Qc7 {[%clk 0:02:39]} 10. Nf3 {[%clk 0:02:40]}  Nbc6 {[%clk 0:02:37]} 11. Ba3 {[%clk 0:02:36]}  cxd4 {[%clk 0:02:31]} 12. Bd6 {[%clk 0:02:32]}  Qc8 {[%clk 0:02:31]} 13. cxd4 {[%clk 0:02:21]}  Nxd4 {[%clk 0:02:31]} 14. O-O {[%clk 0:02:19]}  Nxf3+ {[%clk 0:02:27]} 15. Qxf3 {[%clk 0:02:19]}  Qd8 {[%clk 0:02:14]} 16. c4 {[%clk 0:02:11]}  O-O {[%clk 0:02:03]} 17. cxd5 {[%clk 0:02:08]}  exd5 {[%clk 0:02:03]} 18. Qh5 {[%clk 0:01:45]}  h6 {[%clk 0:01:53]} 19. f4 {[%clk 0:01:40]}  Re8 {[%clk 0:01:41]} 20. f5 {[%clk 0:01:39]}  Nc8 {[%clk 0:01:39]} 21. f6 {[%clk 0:01:28]}  Nxd6 {[%clk 0:01:33]} 22. exd6 {[%clk 0:01:27]}  Be6 {[%clk 0:01:13]} 23. d7 {[%clk 0:01:07]}  Qxd7 {[%clk 0:01:00]} 24. fxg7 {[%clk 0:01:05]}  Kxg7 {[%clk 0:00:59]} 25. Bb5 {[%clk 0:01:01]}  Qe7 {[%clk 0:00:46]} 26. Bxe8 {[%clk 0:00:59]}  Rxe8 {[%clk 0:00:46]} 27. Rf3 {[%clk 0:00:55]}  Rh8 {[%clk 0:00:39]} 28. Qe5+ {[%clk 0:00:36]}  Kh7 {[%clk 0:00:32]} 29. Raf1 {[%clk 0:00:29]}  Rf8 {[%clk 0:00:21]} 30. Rf6 {[%clk 0:00:17]}  Qc5+ {[%clk 0:00:13]} 31. Kh1 {[%clk 0:00:17]}  d4 {[%clk 0:00:11]} 32. Qxc5 {[%clk 0:00:14]}  bxc5 {[%clk 0:00:12]} 33. Rxe6 {[%clk 0:00:15]}  fxe6 {[%clk 0:00:12]} 34. Rxf8 {[%clk 0:00:14]}  Kg6 {[%clk 0:00:12]} 35. Rc8 {[%clk 0:00:14]}  Kf5 {[%clk 0:00:12]} 36. Rxc5+ {[%clk 0:00:13]}  Ke4 {[%clk 0:00:13]} 37. Kg1 {[%clk 0:00:12]}  d3 {[%clk 0:00:11]} 38. Kf2 {[%clk 0:00:11]}  Kd4 {[%clk 0:00:11]} 39. Ra5 {[%clk 0:00:11]}  e5 {[%clk 0:00:11]} 40. Rxa7 {[%clk 0:00:10]}  e4 {[%clk 0:00:12]} 41. Re7 {[%clk 0:00:08]}  e3+ {[%clk 0:00:08]} 42. Rxe3 {[%clk 0:00:05]}  d2 {[%clk 0:00:08]} 43. Ke2 {[%clk 0:00:05]}  d1=Q+ {[%clk 0:00:08]} 44. Kxd1 {[%clk 0:00:05]}  Kxe3 {[%clk 0:00:09]} 45. a5 {[%clk 0:00:05]} 1-0


[Site "https://www.chess.com"]